[Event "German-ch Blitz Women 2022"]
[Site "Magdeburg"]
[Date "2022.08.13"]
[Round "12.2"]
[White "Khrapko, Marharyta"]
[Black "Muetsch, Annmarie"]
[Result "0-1"]
[ECO "C41"]
[WhiteElo "2128"]
[BlackElo "2249"]
[Annotator "TA"]
[PlyCount "50"]
[EventDate "2022.08.10"]
[EventType "tourn"]
[EventCountry "GER"]
[SourceTitle "playchess.com"]
[Source "ChessBase"]
[SourceQuality "1"]
[TimeControl "180+2"]

{[%evp 14,50,40,39,48,34,67,10,68,-26,-6,-13,12,-75,-79,-77,-77,-177,-191,-187,-186,-202,-111,-122,-130,-137,-83,-84,-64,-75,-85,-85,-89,-352,-331,-29996,-29997,-29997,-29998]} 1. e4 {[%emt 0:00:01]} d6 {[%emt 0:00:00]} 2. d4 {[%emt 0:00:01]} Nf6 {[%emt 0:00:01]} 3. Nc3 {[%emt 0:00:01]} e5 {[%emt 0:00:00]} 4. Nf3 {[%emt 0:00:03]} Nbd7 {[%emt 0:00:01]} 5. Bc4 {[%emt 0:00:01]} Be7 {[%emt 0:00:01]} 6. O-O {[%emt 0:00:03]} c6 {[%emt 0:00:01]} 7. Re1 {[%emt 0:00:03]} Qc7 {[%emt 0:00:02] 7...h6 is becoming the main line.} 8. a4 {[%emt 0:00:02][%cal Ba2a4,Ba4a5][%mdl 32]} h6 {[%emt 0:00:02] C41: Philidor Defence.} 9. a5 {[%emt 0:00:04]} Nf8 {[%emt 0:00:03]} 10. b3 {[%emt 0:00:19]} ({White should play} 10. Nh4 $14) 10... Bg4 {[%emt 0:00:15] [#]} (10... Ng6 $11) 11. dxe5 $146 {[%emt 0:00:06]} (11. h3 $14 Bh5 12. Qd3) ({Predecessor:} 11. Be3 Ng6 12. Be2 O-O 13. h3 Be6 14. Qd3 Rfd8 15. d5 cxd5 16. exd5 Bd7 17. Nd2 {0-1 (48) Sumer,G (1969)-Olcum,A (2315) Ankara 2019}) 11... dxe5 $11 {[%emt 0:00:01]} 12. Bb2 {[%emt 0:00:12]} (12. h3 $5 {[%cal Rh3g4]} Rd8 13. Qe2 $11) 12... Ne6 {[%emt 0:00:09]} 13. h3 {[%emt 0:00:05]} (13. Bxe6 $11 {keeps the balance.} Bxe6 14. Ne2) 13... Rd8 $17 {[%emt 0:00:07]} 14. Bd3 {[%emt 0:00:18]} Bh5 {[%emt 0:00:17]} 15. Ne2 {[%emt 0:00:45]} (15. Nb1 $17) 15... Bxf3 $19 {[%emt 0:00:12]} 16. gxf3 {[%emt 0:00:00]} Nh5 {[%emt 0:00:31] Inhibits f4.} 17. Kh2 {[%emt 0:00:41]} Nef4 {[%emt 0:00:20]} (17... Bc5 $19 18. Rg1 Bxf2) 18. Nxf4 {[%emt 0:00:16]} Nxf4 $40 {[%emt 0:00:03][%mdl 128] Black is out for blood.} 19. Rg1 {[%emt 0:00:08]} Qd7 {[%emt 0:00:08]} (19... O-O $142 20. Bc1 Bg5) 20. Qf1 $17 {[%emt 0:00:02]} Bf6 {[%emt 0:00:24][%cal Be7f6,Bf6h4,Bh4g3][%mdl 32] Black is more active.} ({Reject} 20... Nxd3 $6 21. Rd1 $11) 21. Bc4 {[%emt 0:00:05]} Qc8 {[%emt 0:00:18]} 22. Ba3 {[%emt 0:00:09]} Rd2 {[%emt 0:00:05][%cal Od2f2] [#] Hoping for ...Rxf2+!} 23. Rg3 $2 {[%emt 0:00:04][%mdl 8192]} (23. Bc5 $17 {is a better defense.}) 23... Bh4 $19 {[%emt 0:00:06]} ({Weaker is} 23... Rxc2 24. Bc5 $17) 24. Qe1 $2 {[%emt 0:00:01]} (24. Bc5 $19 Bxg3+ 25. Kxg3) 24... Bxg3+ {[%emt 0:00:03]} 25. Kg1 {[%emt 0:00:07] [#]} Qxh3 $1 {[%emt 0:00:08] Weighted Error Value: White=0.87/Black=0.21 (precise)} 0-1

[Event "German-ch Blitz Women 2022"]
[Site "Magdeburg"]
[Date "2022.08.13"]
[Round "12.3"]
[White "Grabowski, Petra"]
[Black "Zhou, Lepu Coco"]
[Result "0-1"]
[ECO "D26"]
[WhiteElo "1643"]
[BlackElo "1986"]
[Annotator "TA RC"]
[PlyCount "98"]
[EventDate "2022.08.10"]
[EventType "tourn"]
[EventCountry "GER"]
[SourceTitle "playchess.com"]
[Source "ChessBase"]
[SourceQuality "1"]
[TimeControl "180+2"]

{[%evp 15,98,38,42,37,50,-12,-8,-16,-9,-70,-43,-114,-115,-105,-87,-161,-106,-106,-104,-104,-100,-106,-89,-106,197,0,0,-229,-213,-175,-87,-375,-155,-178,-111,-441,-457,-628,-625,-624,-622,-638,-637,-619,-600,-570,-556,-640,-626,-633,-603,-624,-597,-29976,-877,-29977,-29978,-29977,-29979,-29977,-29978,-29984,-29984,-29987,-29988,-29989,-29988,-29988,-29988,-29990,-29991,-29991,-29992,-29992,-29993,-29993,-29993,-29993,-29994,-29994,-29995,-29995,-29996,-29997,-29998]} 1. d4 {[%emt 0:00:01]} d5 {[%emt 0:00:01]} 2. c4 {[%emt 0:00:01]} dxc4 {[%emt 0:00:01]} 3. Nf3 {[%emt 0:00:02]} Nf6 {[%emt 0:00:01]} 4. e3 {[%emt 0:00:04]} e6 {[%emt 0:00:01]} 5. Bxc4 {[%emt 0:00:02]} a6 {[%emt 0:00:00]} 6. O-O {[%emt 0:00:08]} c5 {[%emt 0:00:01]} 7. dxc5 {[%emt 0:00:03]} Bxc5 {[%emt 0:00:02]} 8. Qxd8+ {[%emt 0:00:02]} Kxd8 {[%emt 0:00:01]} 9. Ne5 {[%emt 0:00:15] 9.Ne5 is the recent fashion. D27: Queen's Gambit Accepted: Classical main line: 7 e4!? and 7 a4.} Ke7 {[%emt 0:00:02] [#]} 10. Nc3 $146 {[%emt 0:00:11]} (10. Be2 $14) ({Predecessor:} 10. Be2 Nbd7 11. Nc4 b6 12. Nbd2 a5 13. Nb3 Ba6 14. Nxc5 bxc5 15. f3 Rhb8 16. e4 Nb6 17. Nxb6 Rxb6 18. Bxa6 Raxa6 19. Rf2 a4 20. Rc2 Nd7 {½-½ (20) L'Ami,E (2621)-Vachier Lagrave,M (2761) Germany 2022}) 10... Nbd7 {[%emt 0:00:02]} 11. Nxd7 {[%emt 0:00:08] The position is equal.} Bxd7 {[%emt 0:00:01]} 12. e4 {[%emt 0:00:07]} (12. Rd1 $11) 12... Bc6 {[%emt 0:00:04]} 13. Bg5 {[%emt 0:00:03]} (13. Re1 $15) 13... h6 $17 {[%emt 0:00:03]} 14. Bxf6+ {[%emt 0:00:20]} gxf6 {[%emt 0:00:01]} 15. Kh1 {[%emt 0:00:12]} (15. Rac1 $17) 15... Rhg8 {[%emt 0:00:02]} (15... Rhd8 $19 16. f3 Rd2) 16. f3 {[%emt 0:00:02]} Rad8 {[%emt 0:00:02]} 17. Rad1 {[%emt 0:00:03] Prevents Rd2.} b5 {[%emt 0:00:08]} 18. Be2 {[%emt 0:00:04]} b4 {[%emt 0:00:05]} 19. Nb1 {[%emt 0:00:08] [#] Rc1 is the strong threat.} a5 $2 {[%emt 0:00:02][%mdl 8192] Black is more active.} (19... Rxd1 $17 {keeps the pressure on.} 20. Rxd1 Bb5 21. Bxb5 axb5) 20. Rxd8 $2 {[%emt 0:00:05]} (20. Rc1 $18) 20... Rxd8 $11 {[%emt 0:00:02]} 21. Rd1 $2 {[%emt 0:00:02]} (21. Rc1 $11 {and White is okay.} Kd6 22. Nd2) 21... Rxd1+ $19 {[%emt 0:00:02]} 22. Bxd1 {[%emt 0:00:01][%mdl 4096] Endgame [#] KBB-KBN} a4 {[%emt 0:00:02]} (22... Be3 $1 $19 {has better winning chances. Hoping for ...Bb5.} 23. g3 Bb5) 23. a3 $2 {[%emt 0:00:09][%mdl 8192]} (23. Nd2 $17) 23... bxa3 {[%emt 0:00:08]} ({Avoid the trap} 23... Bd4 $2 24. axb4 Bxb2 25. Kg1 $19) (23... b3 $19 {is more deadly.} 24. Nd2 Bb5 25. Bxb3 axb3 26. Nxb3 Be3) 24. Nxa3 $17 {[%emt 0:00:07]} Bd4 {[%emt 0:00:04]} ({Black should play} 24... f5 $19 25. Nc4 fxe4 26. fxe4 Bd4) 25. b3 $2 {[%emt 0:00:10][%mdl 8192]} (25. Nc4 $17 {was the crucial defense.}) 25... Bc5 $19 {[%emt 0:00:10]} 26. Nc4 {[%emt 0:00:07]} a3 {[%emt 0:00:02]} 27. Nxa3 {[%emt 0:00:26]} Bxa3 {[%emt 0:00:01]} 28. Kg1 {[%emt 0:00:03]} Kd6 {[%emt 0:00:07]} 29. Kf2 {[%emt 0:00:03]} Kc5 {[%emt 0:00:04]} 30. Ke3 {[%emt 0:00:06]} Kb4 31. Kd3 {[%emt 0:00:11]} Bb5+ {[%emt 0:00:04]} 32. Kd4 {[%emt 0:00:02]} Bb2+ {[%emt 0:00:01]} 33. Ke3 {[%emt 0:00:04]} Kc3 {[%emt 0:00:03] White must now prevent ...Bc1+.} 34. g4 {[%emt 0:00:15]} Bc1+ {[%emt 0:00:01]} 35. Kf2 {[%emt 0:00:02]} Kd2 {[%emt 0:00:01] Black mates.} 36. f4 {[%emt 0:00:20]} Kxd1 {[%emt 0:00:04]} 37. Kf3 {[%emt 0:00:03]} Kc2 {[%emt 0:00:11]} 38. g5 {[%emt 0:00:01]} fxg5 {[%emt 0:00:02]} 39. fxg5 {[%emt 0:00:01]} Bxg5 {[%emt 0:00:03]} 40. Kg4 {[%emt 0:00:02]} Be2+ {[%emt 0:00:02]} 41. Kg3 {[%emt 0:00:01]} Kxb3 {[%emt 0:00:01]} 42. h4 {[%emt 0:00:01]} Be3 {[%emt 0:00:03]} 43. e5 {[%emt 0:00:05]} Kc4 {[%emt 0:00:02]} 44. Kg2 {[%emt 0:00:04]} Kd4 {[%emt 0:00:02]} 45. Kg3 {[%emt 0:00:01]} Kxe5 {[%emt 0:00:01]} 46. Kg2 {[%emt 0:00:01]} f5 {[%emt 0:00:02][%cal Bf7f5,Bf5f4,Bf4f3,Bf3f2][%mdl 32]} 47. Kg3 {[%emt 0:00:01]} f4+ {[%emt 0:00:01]} 48. Kg2 {[%emt 0:00:00]} f3+ {[%emt 0:00:02]} 49. Kg3 {[%emt 0:00:02]} f2 {Weighted Error Value: White=0.90/Black=0.49} 0-1

[Event "German-ch Blitz Women 2022"]
[Site "Magdeburg"]
[Date "2022.08.13"]
[Round "12.4"]
[White "Braun, Kristin"]
[Black "Nikolaeva, Mariya A"]
[Result "1/2-1/2"]
[ECO "C50"]
[WhiteElo "1897"]
[BlackElo "1309"]
[Annotator "NA RC COMBH"]
[PlyCount "134"]
[EventDate "2022.08.10"]
[EventType "tourn"]
[EventCountry "GER"]
[SourceTitle "playchess.com"]
[Source "ChessBase"]
[SourceQuality "1"]
[TimeControl "180+2"]

1. e4 {[%emt 0:00:01]} e5 {[%emt 0:00:01]} 2. Nf3 {[%emt 0:00:00]} Nc6 {[%emt 0:00:00]} 3. Bc4 {[%emt 0:00:01]} Bc5 {[%emt 0:00:01]} 4. d3 {[%emt 0:00:00]} Nf6 5. c3 d6 {[%emt 0:00:02]} 6. Nbd2 {[%emt 0:00:02]} h6 {[%emt 0:00:01]} 7. h3 {[%emt 0:00:05]} a5 {[%emt 0:00:01]} 8. Bb3 {[%emt 0:00:02]} Be6 {[%emt 0:00:02]} 9. Nf1 {[%emt 0:00:04]} Bxb3 {[%emt 0:00:05]} 10. axb3 {[%emt 0:00:01]} Bb6 {[%emt 0:00:05]} 11. Be3 {[%emt 0:00:12]} Bxe3 {[%emt 0:00:08]} 12. Nxe3 {[%emt 0:00:01]} Ne7 {[%emt 0:00:05]} 13. g4 {[%emt 0:00:08]} Ng6 {[%emt 0:00:05]} 14. Nf5 {[%emt 0:00:03]} Rg8 {[%emt 0:00:14]} 15. g5 {[%emt 0:00:08]} hxg5 {[%emt 0:00:10]} 16. Nxg5 {[%emt 0:00:01]} Nf4 {[%emt 0:00:16]} 17. Qf3 {[%emt 0:00:13]} N6h5 {[%emt 0:00:40]} 18. h4 {[%emt 0:00:08]} f6 {[%emt 0:00:12]} 19. Nh3 {[%emt 0:00:16]} Qd7 {[%emt 0:00:09]} 20. O-O-O {[%emt 0:00:27]} Qb5 {[%emt 0:00:09]} 21. Kc2 {[%emt 0:00:09]} a4 {[%emt 0:00:03]} 22. b4 {[%emt 0:00:10]} a3 {[%emt 0:00:04]} 23. Ra1 {[%emt 0:00:11]} Qa4+ {[%emt 0:00:05]} 24. b3 {[%emt 0:00:00]} Qc6 {[%emt 0:00:06]} 25. Rhg1 {[%emt 0:00:14]} g6 {[%emt 0:00:14]} 26. Nxf4 {[%emt 0:00:24]} Nxf4 {[%emt 0:00:02]} 27. Ne3 {[%emt 0:00:06]} Qb5 {[%emt 0:00:03]} 28. Nd5 {[%emt 0:00:04]} Nxd5 {[%emt 0:00:05]} 29. exd5 {[%emt 0:00:01]} Ke7 {[%emt 0:00:10]} 30. Qe4 {[%emt 0:00:07]} f5 {[%emt 0:00:03]} 31. Qe3 {[%emt 0:00:01]} Kf7 {[%emt 0:00:04]} 32. Qg5 {[%emt 0:00:05]} c5 {[%emt 0:00:02]} 33. dxc6 {[%emt 0:00:03]} bxc6 {[%emt 0:00:02]} 34. h5 {[%emt 0:00:03]} Qb6 {[%emt 0:00:10]} 35. hxg6+ {[%emt 0:00:01]} Ke8 {[%emt 0:00:04]} 36. Qe3 {[%emt 0:00:07]} Qc7 {[%emt 0:00:04]} 37. f4 {[%emt 0:00:06]} Qe7 {[%emt 0:00:03]} 38. Qb6 {[%emt 0:00:07]} Qd7 {[%emt 0:00:03]} 39. fxe5 {[%emt 0:00:04]} dxe5 {[%emt 0:00:02]} 40. Qc5 {[%emt 0:00:01]} Rg7 {[%emt 0:00:07]} 41. Qxe5+ {[%emt 0:00:01]} Qe7 {[%emt 0:00:03]} 42. Qxe7+ {[%emt 0:00:02]} Kxe7 {[%emt 0:00:01]} 43. d4 {[%emt 0:00:05]} Kf6 {[%emt 0:00:01]} 44. Ra2 {[%emt 0:00:04]} Rxg6 {[%emt 0:00:02]} 45. Rxg6+ {[%emt 0:00:01]} Kxg6 {[%emt 0:00:01]} 46. Kd3 {[%emt 0:00:01]} Kg5 {[%emt 0:00:02]} 47. Ke3 {[%emt 0:00:02]} f4+ {[%emt 0:00:02]} 48. Kf3 {[%emt 0:00:00]} Kf5 {[%emt 0:00:00]} 49. c4 {[%emt 0:00:03]} Kg5 {[%emt 0:00:04]} 50. Ke4 {[%emt 0:00:02]} Re8+ {[%emt 0:00:04]} 51. Kf3 {[%emt 0:00:01]} Ra8 {[%emt 0:00:00]} 52. b5 {[%emt 0:00:04]} cxb5 53. cxb5 Rb8 {[%emt 0:00:04]} 54. Rxa3 {[%emt 0:00:01]} Rxb5 {[%emt 0:00:02]} 55. Kf2 {[%emt 0:00:10]} Rb4 {[%emt 0:00:02]} 56. d5 {[%emt 0:00:02]} Rd4 {[%emt 0:00:02]} 57. Ra5 {[%emt 0:00:01]} Kg4 {[%emt 0:00:01]} 58. Ra8 {[%emt 0:00:08]} Rxd5 {[%emt 0:00:02]} 59. Rg8+ {[%emt 0:00:01]} Kf5 {[%emt 0:00:01]} 60. Rb8 {[%emt 0:00:04]} Rd2+ {[%emt 0:00:03]} 61. Kf3 {[%emt 0:00:02]} Rd3+ {[%emt 0:00:01]} 62. Kf2 {[%emt 0:00:00]} Rc3 {[%emt 0:00:01]} 63. Rf8+ {[%emt 0:00:01]} Ke4 {[%emt 0:00:01]} 64. Re8+ {[%emt 0:00:01]} Kf5 {[%emt 0:00:00]} 65. Rf8+ {[%emt 0:00:00]} Ke5 {[%emt 0:00:01]} 66. Re8+ {[%emt 0:00:01]} Kf5 {[%emt 0:00:01]} 67. Rf8+ {[%emt 0:00:01]} Ke5 1/2-1/2

[Event "German-ch Blitz Women 2022"]
[Site "Magdeburg"]
[Date "2022.08.13"]
[Round "12.5"]
[White "Skibbe, Diana"]
[Black "Schulze, Lara"]
[Result "0-1"]
[ECO "B21"]
[WhiteElo "1943"]
[BlackElo "2292"]
[Annotator "TA"]
[PlyCount "88"]
[EventDate "2022.08.10"]
[EventType "tourn"]
[EventCountry "GER"]
[SourceTitle "playchess.com"]
[Source "ChessBase"]
[SourceQuality "1"]
[TimeControl "180+2"]

{[%evp 9,87,-7,2,0,0,0,0,0,-17,-16,0,-10,8,-70,-75,-68,-46,-134,-150,-160,-135,-260,-151,-300,-270,-369,-370,-661,-672,-702,-680,-691,-700,-680,-672,-675,-693,-700,-658,-702,-697,-694,-694,-727,-724,-844,-838,-804,-799,-867,-862,-943,-835,-977,-994,-990,-966,-1398,-1395,-1326,-1313,-1639,-1637,-29966,-29969,-6352,-6609,-5938,-3128,-29984,-29985,-29985,-29986,-29986,-29987,-29986,-29987,-29998,-29999,-29999]} 1. e4 {[%emt 0:00:01]} c5 {[%emt 0:00:01]} 2. f4 {[%emt 0:00:01]} Nc6 {[%emt 0:00:02]} 3. Nf3 {[%emt 0:00:01]} g6 {[%emt 0:00:02]} 4. g3 {[%emt 0:00:03]} Bg7 {[%emt 0:00:02]} 5. Bg2 {[%emt 0:00:04]} d6 {[%emt 0:00:03]} 6. c3 {[%emt 0:00:05] B21: Sicilian: 2 f4 and Morra Gambit.} Nf6 {[%emt 0:00:44]} 7. Qe2 {[%emt 0:00:07]} O-O {[%emt 0:00:07]} 8. O-O {[%emt 0:00:03] The position is equal.} e5 {[%emt 0:00:15]} 9. d3 {[%emt 0:00:02]} Rb8 {[%emt 0:00:07]} 10. a4 {[%emt 0:00:04]} a6 {[%emt 0:00:01] [#]} 11. h3 $146 {[%emt 0:00:06]} (11. f5 $11) ({Predecessor:} 11. f5 gxf5 12. exf5 Re8 13. Bg5 d5 14. Na3 e4 15. dxe4 Rxe4 16. Qf2 Rxa4 17. Rad1 b5 {½-½ (32) Schenning,A (2079)-Khan,V (2066) LSS email 2012}) 11... Nh5 $15 {[%emt 0:00:18]} 12. Qf2 {[%emt 0:00:20][%cal Of4f5]} f5 {[%emt 0:00:03]} 13. Na3 {[%emt 0:00:27]} (13. exf5 $1 $15 gxf5 14. Na3) 13... exf4 $17 {[%emt 0:00:10]} 14. gxf4 {[%emt 0:00:03]} fxe4 {[%emt 0:00:03]} 15. Ng5 {[%emt 0:00:16]} (15. dxe4 $17 Bh6 16. f5 Bxc1 17. Raxc1) 15... Be5 {[%emt 0:00:45]} ({Black should try} 15... exd3 $19 {Threatens to win with ...Rf5.} 16. Bd5+ Kh8) 16. Bxe4 {[%emt 0:00:30]} (16. Qh4 $17 Bf6 17. f5) 16... Bxf4 $19 {[%emt 0:00:16]} ({Not} 16... Nxf4 $2 17. Bxf4 Bxf4 18. Bd5+ Kg7 19. Nf7 Rxf7 20. Bxf7 Qg5+ 21. Qg2 $19) 17. Bd5+ {[%emt 0:00:10]} Kg7 {[%emt 0:00:02] Strongly threatening ...Qxg5+. Really sharp!} 18. Bxf4 {[%emt 0:00:03]} (18. h4 Ne5 19. Bxf4 Nxf4 20. Qxf4 Rxf4 21. Rxf4) 18... Nxf4 {[%emt 0:00:06]} 19. Qh4 {[%emt 0:00:12] [#]} Qxg5+ $3 {[%emt 0:00:01][%mdl 512]} 20. Qxg5 {[%emt 0:00:04]} Nxh3+ {[%emt 0:00:01] Pair of Knights!} 21. Kh2 {[%emt 0:00:01]} Nxg5 {[%emt 0:00:01]} 22. Rxf8 {[%emt 0:00:09]} Kxf8 {[%emt 0:00:01]} 23. Nc4 {[%emt 0:00:07]} Ne7 {[%emt 0:00:08]} 24. Rf1+ {[%emt 0:00:04]} Kg7 {[%emt 0:00:02]} 25. Bg2 {[%emt 0:00:12]} d5 {[%emt 0:00:01]} 26. Nd6 {[%emt 0:00:05]} Bf5 {[%emt 0:00:07]} 27. d4 {[%emt 0:00:03]} cxd4 {[%emt 0:00:04]} 28. cxd4 {[%emt 0:00:01]} Ne4 {[%emt 0:00:09]} 29. Bxe4 {[%emt 0:00:12]} dxe4 {[%emt 0:00:01]} 30. b4 {[%emt 0:00:06]} b6 {[%emt 0:00:01] [#] And now ...Rd8 would win.} 31. Nc4 {[%emt 0:00:04]} b5 {[%emt 0:00:02]} 32. axb5 {[%emt 0:00:03]} axb5 {[%emt 0:00:01]} 33. Ne5 {[%emt 0:00:03]} Rd8 {[%emt 0:00:03]} 34. Rd1 {[%emt 0:00:02]} Nd5 {[%emt 0:00:02]} 35. Rb1 {[%emt 0:00:02]} Nf4 {[%emt 0:00:04]} 36. Kg3 {[%emt 0:00:02]} Ne2+ {[%emt 0:00:01]} 37. Kf2 {[%emt 0:00:02]} Nxd4 {[%emt 0:00:01]} 38. Ke3 {[%emt 0:00:02]} Ne6 {[%emt 0:00:02] ( -> ...Kf6)} 39. Nc6 {[%emt 0:00:04]} Rd3+ {[%emt 0:00:01] Black mates.} 40. Ke2 {[%emt 0:00:03]} Nd4+ {[%emt 0:00:01]} 41. Nxd4 {[%emt 0:00:03]} Rxd4 {[%emt 0:00:01]} 42. Ke3 {[%emt 0:00:01]} Rd3+ {[%emt 0:00:01]} 43. Kf4 {[%emt 0:00:01]} Kf6 {[%emt 0:00:03][%csl Gf6][%cal Rg6g5]} 44. Rc1 {[%emt 0:00:01]} Rf3# {[%emt 0:00:01] White got outplayed after the opening.  Weighted Error Value: White=0.53/Black=0.15 (very precise)} 0-1

[Event "German-ch Blitz Women 2022"]
[Site "Magdeburg"]
[Date "2022.08.13"]
[Round "12.6"]
[White "Rath, Alina"]
[Black "Melamed, Tatjana"]
[Result "0-1"]
[ECO "A21"]
[WhiteElo "2062"]
[BlackElo "2380"]
[Annotator "TA"]
[PlyCount "116"]
[EventDate "2022.08.10"]
[EventType "tourn"]
[EventCountry "GER"]
[SourceTitle "playchess.com"]
[Source "ChessBase"]
[SourceQuality "1"]
[TimeControl "180+2"]

{[%evp 9,116,-60,-11,-48,-16,-14,-14,-44,-51,-45,-41,-47,-41,-44,-48,-54,-22,-45,4,0,0,0,0,-29,76,0,0,0,0,-160,-168,-166,-173,-160,-137,-144,-145,-145,-131,-164,0,-213,-252,-243,-38,-22,0,-232,-206,-216,-216,-211,-221,-251,-193,-195,-181,-176,-107,-103,-28,-22,149,-343,-339,-401,-338,-329,-120,-226,-226,-369,-369,-394,-393,-353,-304,-244,-232,-251,-232,-561,-499,-542,-372,-831,-791,-730,-623,-919,-420,-383,-233,-1008,-805,-1234,-232,-905,-795,-29970,-29971,-29988,-29989,-29989,-29979,-29979,-29980,-29996,-29997]} 1. c4 e5 2. Nc3 Bb4 3. Nd5 Bc5 4. g3 c6 5. Nc3 Nf6 (5... d5 $15 {is more appropriate.}) 6. Bg2 {A21: English Opening: 1...e5 2 Nc3.} O-O 7. e3 d5 8. d4 {The position is equal.} exd4 9. exd4 Bb4 (9... Bg4 10. f3 Bf5 11. dxc5 $16) 10. cxd5 {[#]} Re8+ $146 (10... cxd5 11. Nge2 $11) ({Predecessor:} 10... Nxd5 11. Nge2 Bg4 12. O-O Nxc3 13. bxc3 Bxc3 14. Rb1 Bxd4 15. h3 Bxe2 16. Qxe2 Bb6 {0-1 (38) Krasnov,S (1962)-Sherwood,P (1784) San Francisco 2012}) 11. Nge2 $1 Bg4 (11... cxd5 12. O-O $11) 12. f3 Bf5 (12... Nxd5 $5 {[%cal Rb4c3]} 13. Bd2 Be6 $11) 13. O-O cxd5 (13... Nxd5 $15 14. Rf2 Ba5) 14. a3 Bxc3 15. Nxc3 Nc6 {[%cal Bb8c6,Bc6a5,Ba5b3][%mdl 32]} 16. Bg5 Be6 (16... h6 $11 {remains equal.} 17. Bxf6 Qxf6) 17. Qd2 (17. f4 $16 Ne7 18. Bxf6 gxf6 19. Rf2) 17... h6 $11 18. Be3 Na5 19. Bf2 $2 (19. Qf2 $11) 19... Nb3 $1 $17 {[%csl LRa1,LRd2]} 20. Qd3 Nxa1 21. Rxa1 Qd7 22. g4 Rac8 23. h3 a6 24. f4 Ne4 $2 ({Black should play} 24... Qd6 $19 25. f5 Bd7) 25. Nxe4 $2 (25. f5 $1 $11) 25... dxe4 $19 26. Bxe4 Bd5 $2 (26... f5 $19 27. gxf5 Bd5) 27. Bf5 $15 Be6 (27... Qd6 $11 28. Bxc8 Rxc8) 28. Be4 $1 $19 Bc4 29. Qf3 Qb5 30. b4 Be2 31. Qg2 Qc4 32. Bxb7 Qc3 33. Re1 {[#]} Rcd8 (33... Bd3 $1 $19 34. Qg3 (34. Bxc8 $2 Rxe1+ 35. Kh2 Be4 $19) 34... Rxe1+ 35. Bxe1 Qxd4+ 36. Qf2 Qxf2+ 37. Kxf2 Rc2+ 38. Ke3 Bb5) 34. Bc6 Re6 {Black is more active.} (34... Re7 $17 {[%cal Oe2f3] aiming for ...Bf3!} 35. Be4 Qd2) 35. d5 $11 {[#]} Bf3 $2 {[#]} ({Black should try} 35... Rxc6 $1 $11 36. dxc6 Bb5) 36. Qf1 $2 {[%mdl 8192]} (36. dxe6 $1 $16 Bxc6 37. e7) 36... Rxe1 $19 {Dancing on a razor blade.} ({Wrong is} 36... Bxd5 $2 37. Bxd5 Rxe1 38. Qxe1 $19) 37. Bxe1 Qe3+ 38. Qf2 Qxf2+ ({Weaker is} 38... Qxf4 39. d6 $16) (38... Qxa3 $19 39. Qd2 Qb3) 39. Bxf2 (39. Kxf2 $17 Bxd5 40. Ba4) 39... Bxd5 40. Bxd5 (40. Bb6 {is a better defense.} Rd6 41. Bxd5) 40... Rxd5 {[%mdl 4096] Endgame KR-KB} 41. Kg2 Rd2 42. a4 Rb2 43. b5 axb5 44. axb5 Rxb5 45. Kf3 $2 (45. f5 {nothing else works.}) 45... Rb3+ 46. Be3 Kf8 {And now ...g6 would win.} 47. h4 $2 (47. Kf2) 47... Ke7 {[%cal Oh6h5] Hoping for ...h5!} 48. Ke4 Rb4+ 49. Kf3 {Threatens to win with Bc5+.} Ke6 (49... Kd6 $142 {...Kd5 is the strong threat.} 50. Bd2 Rb2) 50. Bc5 Rc4 51. Be3 (51. Bf8) 51... Kd5 52. h5 Rc2 $2 (52... Rc3 53. f5 Ke5) 53. g5 $2 (53. f5) 53... Rh2 54. Kg4 {Against Rh3} Ke4 {Black mates.} 55. Bc1 Rg2+ 56. Kh3 Kf3 57. gxh6 gxh6 58. f5 Rg1 {Weighted Error Value: White=0.98/Black=0.66} 0-1